fUST/lending_fUST_20250303
["ID","MTS","AMOUNT","RATE_DAILY","PERIOD"]
[355200960,1741005032983,-539.0916281,0.000247,2]
[355200962,1741005033004,-151.0,0.0002479,7]
[355200963,1741005033015,-151.0,0.0002479,7]
[355200965,1741005033024,-151.0,0.0002479,7]
[355200967,1741005033039,-151.0,0.0002479,7]
[355200969,1741005033053,-2250.871,0.0002479,7]
[355200971,1741005033064,-2250.871,0.0002479,7]
[355200973,1741005033076,-2250.871,0.0002479,7]
[355200975,1741005033088,-2250.871,0.0002479,7]
[355200976,1741005033099,-13632.81741373,0.0002479,2]
[355200978,1741005033110,-150.0,0.000248,2]
[355200980,1741005033119,-539.0,0.000248,2]
[355200982,1741005033129,-1955.0,0.000248,2]
[355200983,1741005033141,-2278.0,0.000248,2]
[355200985,1741005033151,-3000.0,0.000249,2]
[355200987,1741005033162,-151.0,0.000249,7]
[355200989,1741005033173,-151.0,0.000249,7]
[355200991,1741005033184,-2250.871,0.000249,7]
[355200992,1741005033195,-2250.871,0.000249,7]
[355200994,1741005033206,-4342.96185444,0.000249,2]
[355200996,1741005033219,-420.0,0.00024913,2]
[355200998,1741005033229,-507.33294914,0.00024973,2]
[355201000,1741005033240,-500.0,0.00024973,2]
[355201002,1741005033251,-500.0,0.00024973,2]
[355201004,1741005033261,-498.85988746,0.00024973,2]
[355201006,1741005033272,-500.0,0.00024973,2]
[355201007,1741005033283,-500.0,0.00024973,2]
[355201009,1741005033293,-500.0,0.00024973,2]
[355201011,1741005033307,-500.0,0.00024973,2]
[355201013,1741005033317,-500.0,0.00024973,2]
[355201015,1741005033328,-500.0,0.00024973,2]
[355201017,1741005033338,-160.845,0.00024973,8]
[355201018,1741005033348,-151.0,0.00024973,7]
[355201020,1741005033357,-151.0,0.00024973,7]
[355201022,1741005033367,-2250.871,0.00024973,7]
[355201024,1741005033376,-2250.871,0.00024973,7]
[355201026,1741005033385,-653736.16128173,0.0002499,2]
[355201027,1741005033395,-151.0,0.0002499,7]
[355201029,1741005033404,-221.27456,0.0002499,7]
[355201031,1741005033413,-2250.871,0.0002499,7]
[355201033,1741005033423,-2250.871,0.0002499,7]
[355201035,1741005033432,-9727.92894273,0.00025,2]
[355201037,1741005033445,-550.0,0.00025,2]
[355201515,1741005038394,-24472.66705403,0.000239,2]
[355201778,1741005040530,-21928.58859162,0.000239,2]
[355201780,1741005040540,-219.55720741,0.00024645,2]
[355201782,1741005040549,-219.55720741,0.00024768,2]
[355201784,1741005040559,-219.55720741,0.0002489,2]
[355201786,1741005040569,-500.0,0.00024973,2]
[355201788,1741005040579,-66083.4914132,0.00025,2]
[355202369,1741005046258,-437.675324,0.00025,2]
[355202376,1741005046314,-5581.98,0.00025,2]
[355203204,1741005821898,-500.0,0.00024,10]
[355203205,1741005821927,-500.0,0.00024,10]
[355203206,1741005821955,-716.62957899,0.00024,10]
[355203207,1741005821984,-939.92042201,0.00024,10]
[355203210,1741006060975,10295.82151342,0.00024,10]
[355203211,1741006121146,777.335,0.00024,10]
[355203212,1741006155145,155.103573,0.00024,10]
[355203251,1741006232982,-2934.91119721,0.00021425,2]
[355203252,1741006232992,-166.855685,0.000239,2]
[355203253,1741006233002,-300.0,0.00023958,2]
[355203254,1741006233011,-6448.70046517,0.00023959,2]
[355203306,1741006238544,-12416.92399737,0.00023959,2]
[355203308,1741006238554,-23110.4089486,0.00024,2]
[355203773,1741006244975,-494.18,0.00024,2]
[355203786,1741006245086,-3861.83488827,0.00024,2]
[355203909,1741006565236,7190.63991158,0.00024,10]
[355204395,1741007443815,-164.0,0.00022,2]
[355204397,1741007443824,-164.0,0.00022192,2]
[355204399,1741007443835,-1043.9072682,0.00022698,2]
[355204693,1741007446814,-4115.11218287,0.00022698,2]
[355205211,1741008518707,41952.08683215,0.000145,2]
[355205212,1741008519619,17219.4495242,0.00015,4]
[355205213,1741008521368,300.0,0.0001,2]
[355205214,1741008523191,15796.44556171,0.000135,2]
[355205259,1741008632227,-164.0,0.00022,2]
[355205260,1741008632239,-164.0,0.00022192,2]
[355205261,1741008632251,-1017.1863308,0.00022225,2]
[355205325,1741008638106,-3588.8941782,0.00022225,2]
[355205327,1741008638116,-187.1578872,0.00022284,2]
[355205329,1741008638125,-277.42045464,0.00022292,5]
[355205331,1741008638134,-1115.8371923,0.00022293,2]
[355205333,1741008638144,-299.97,0.00022697,2]
[355205335,1741008638153,-257.74,0.00022697,2]
[355205337,1741008638163,-900.0,0.000227,2]
[355205339,1741008638172,-300.0,0.00022999,2]
[355205341,1741008638182,-4158.178,0.00023,2]
[355205343,1741008638192,-164.0,0.00023014,2]
[355205344,1741008638201,-900.0,0.000237,3]
[355205346,1741008638210,-837.45722137,0.00023899,2]
[355205349,1741008638220,-2335.13746574,0.000239,3]
[355205352,1741008638230,-1368.72767456,0.0002399,2]
[355205355,1741008638240,-500.0,0.00023999,2]
[355205358,1741008638249,-500.0,0.00023999,2]
[355205360,1741008638258,-452.57725564,0.00023999,2]
[355205362,1741008638270,-476.7031871,0.00023999,2]
[355205364,1741008638279,-500.0,0.00023999,2]
[355205366,1741008638288,-500.0,0.00023999,2]
[355205368,1741008638298,-500.0,0.00023999,2]
[355205370,1741008638307,-500.0,0.00023999,2]
[355205372,1741008638316,-500.0,0.00023999,2]
[355205374,1741008638325,-500.0,0.00023999,2]
[355205375,1741008638335,-500.0,0.00023999,2]
[355205377,1741008638345,-500.0,0.00023999,2]
[355205379,1741008638354,-500.0,0.00023999,2]
[355205381,1741008638363,-500.0,0.00023999,2]
[355205383,1741008638372,-500.0,0.00023999,2]
[355205385,1741008638381,-500.0,0.00023999,2]
[355205387,1741008638391,-500.0,0.00023999,2]
[355205388,1741008638400,-500.0,0.00023999,2]
[355205390,1741008638409,-500.0,0.00023999,2]
[355205392,1741008638418,-500.0,0.00023999,2]
[355205394,1741008638428,-500.0,0.00023999,2]
[355205396,1741008638438,-500.0,0.00023999,2]
[355205398,1741008638447,-500.0,0.00023999,2]
[355205400,1741008638457,-552.66310048,0.00023999,2]
[355205403,1741008638468,-500.0,0.00023999,2]
[355205404,1741008638478,-500.0,0.00023999,2]
[355205407,1741008638487,-500.0,0.00023999,2]
[355205408,1741008638497,-500.0,0.00023999,2]
[355205410,1741008638507,-426.25470376,0.00023999,2]
[355205412,1741008638519,-8898.01714951,0.00024,2]
[355205415,1741008638531,-644.887481,0.00024,2]
[355206132,1741008646618,-17794.85012959,0.00024,2]
[355206552,1741009838103,-165.0,0.00022,2]
[355206553,1741009838112,-165.0,0.00023014,2]
[355206554,1741009838122,-155.103573,0.00023904,4]
[355206555,1741009838131,-60.01900689,0.00023999,2]
[355206582,1741009840329,-239.98099311,0.00023999,2]
[355206583,1741009840339,-259.60005711,0.00024,2]
[355206584,1741009840351,-500.41894978,0.00024,2]
[355206628,1741009843224,-432.73892352,0.00024,2]
[355207640,1741010075181,4724.1,0.00021,10]
[355207669,1741010891077,20470.04175365,0.00021,2]
[355208233,1741011038425,-183.0,0.00023,2]
[355208235,1741011038434,-168.8914353,0.0002352,2]
[355208237,1741011038443,-2054.0,0.0002352,2]
[355208239,1741011038453,-977.38371706,0.00023893,2]
[355208241,1741011038462,-1020.38475149,0.00023895,2]
[355208243,1741011038472,-2257.29955037,0.000239,3]
[355208245,1741011038481,-300.0,0.00023972,2]
[355208247,1741011038490,-500.0,0.00023973,2]
[355208249,1741011038500,-500.0,0.00023973,2]
[355208251,1741011038509,-500.92560493,0.00023973,2]
[355208253,1741011038519,-500.0,0.00023973,2]
[355208255,1741011038529,-500.0,0.00023973,2]
[355208257,1741011038539,-500.0,0.00023973,2]
[355208259,1741011038548,-500.0,0.00023973,2]
[355208261,1741011038558,-500.0,0.00023973,2]
[355208264,1741011038571,-500.0,0.00023973,2]
[355208266,1741011038582,-500.0,0.00023973,2]
[355208267,1741011038594,-500.0,0.00023973,2]
[355208269,1741011038604,-453.58726311,0.00023973,2]
[355208272,1741011038613,-500.0,0.00023973,2]
[355208273,1741011038623,-500.0,0.00023973,2]
[355208276,1741011038632,-500.0,0.00023973,2]
[355208277,1741011038642,-619.52,0.00023983,3]
[355208279,1741011038651,-151.0,0.00023986,7]
[355208282,1741011038660,-206.49,0.0002399,3]
[355208284,1741011038670,-199.16407196,0.00023992,2]
[355208286,1741011038679,-500.0,0.00023992,2]
[355208288,1741011038688,-450.37709778,0.00023992,2]
[355208289,1741011038697,-500.0,0.00023992,2]
[355208292,1741011038707,-500.0,0.00023992,2]
[355208294,1741011038716,-500.0,0.00023992,2]
[355208295,1741011038725,-500.0,0.00023992,2]
[355208298,1741011038735,-500.0,0.00023992,2]
[355208300,1741011038744,-500.0,0.00023992,2]
[355208301,1741011038753,-500.0,0.00023992,2]
[355208303,1741011038763,-500.0,0.00023992,2]
[355208306,1741011038774,-500.0,0.00023992,2]
[355208308,1741011038783,-500.0,0.00023992,2]
[355208310,1741011038792,-500.0,0.00023992,2]
[355208312,1741011038802,-500.0,0.00023992,2]
[355208314,1741011038811,-500.0,0.00023992,2]
[355208316,1741011038820,-500.0,0.00023992,2]
[355208318,1741011038830,-500.0,0.00023992,2]
[355208320,1741011038839,-500.0,0.00023992,2]
[355208322,1741011038849,-500.0,0.00023992,2]
[355208324,1741011038858,-500.0,0.00023992,2]
[355208326,1741011038868,-500.0,0.00023992,2]
[355208328,1741011038877,-500.0,0.00023992,2]
[355208330,1741011038886,-500.0,0.00023992,2]
[355208332,1741011038896,-501.36672943,0.00023992,2]
[355208334,1741011038906,-500.0,0.00023992,2]
[355208336,1741011038915,-500.0,0.00023992,2]
[355208338,1741011038925,-186.31434485,0.00023992,2]
[355208663,1741011043431,-313.68565515,0.00023992,2]
[355208664,1741011043441,-500.0,0.00023992,2]
[355208665,1741011043450,-500.0,0.00023992,2]
[355208667,1741011043460,-85.93434269,0.00023992,2]
[355208669,1741011043472,-414.06565731,0.00023992,2]
[355208670,1741011043482,-500.0,0.00023992,2]
[355208671,1741011043491,-225.0871,0.00023993,7]
[355208672,1741011043501,-225.0871,0.00023993,7]
[355208674,1741011043510,-225.0871,0.00023993,7]
[355208677,1741011043528,-225.0871,0.00023993,7]
[355208679,1741011043541,-225.0871,0.00023993,7]
[355208681,1741011043551,-225.0871,0.00023993,7]
[355208682,1741011043561,-225.0871,0.00023993,7]
[355208683,1741011043570,-225.0871,0.00023993,7]
[355208684,1741011043580,-225.0871,0.00023993,7]
[355208685,1741011043590,-225.0871,0.00023993,7]
[355208686,1741011043601,-225.0871,0.00023993,7]
[355208687,1741011043611,-225.0871,0.00023993,7]
[355208689,1741011043621,-225.0871,0.00023993,7]
[355208691,1741011043631,-225.0871,0.00023993,7]
[355208693,1741011043641,-225.0871,0.00023993,7]
[355208695,1741011043651,-225.0871,0.00023993,7]
[355208696,1741011043662,-225.0871,0.00023993,7]
[355208697,1741011043672,-225.0871,0.00023993,7]
[355208698,1741011043682,-225.0871,0.00023993,7]
[355208699,1741011043692,-225.087093,0.00023993,7]
[355208700,1741011043703,-572.47884098,0.00024,2]
[355208701,1741011043713,-2809.36008842,0.00024,10]
[355208702,1741011043722,-560.07957799,0.00024,2]
[355208703,1741011043732,-500.0,0.00024,2]
[355208704,1741011043742,-560.07957799,0.00024,2]
[355208705,1741011043752,-560.07957799,0.00024,2]
[355208706,1741011043762,-319.76126603,0.00024,2]
[355208707,1741011043772,-1000.0,0.00024,24]
[355208708,1741011043782,-2043.08,0.00024,2]
[355208709,1741011043792,-30000.0,0.00024,5]
[355208710,1741011043802,-5000.0,0.00024,120]
[355208711,1741011043812,-5000.0,0.00024,120]
[355208712,1741011043822,-150.0,0.00024,2]
[355208713,1741011043832,-397.0,0.00024073,2]
[355208714,1741011043842,-412.99,0.0002409,3]
[355208715,1741011043853,-30000.0,0.000241,5]
[355208716,1741011043863,-306.0,0.0002411,2]
[355208717,1741011043872,-977.38371703,0.00024145,2]
[355208718,1741011043883,-184.0,0.00024164,2]
[355208719,1741011043892,-30000.0,0.000242,5]
[355208720,1741011043902,-30000.0,0.000243,5]
[355208721,1741011043912,-977.38371703,0.00024397,2]
[355208722,1741011043922,-12139.4165189,0.000244,5]
[355208723,1741011043934,-1613.31182417,0.000244,5]
[355208731,1741011046276,-2471.71266735,0.000244,5]
[355209670,1741012245342,-300.0,0.00022999,2]
[355209672,1741012245352,-10791.034109,0.00023,2]
[355209674,1741012245362,-390.95348682,0.00023885,2]
[355209676,1741012245374,-168.8914353,0.00023909,2]
[355209678,1741012245390,-500.0,0.00023973,2]
[355209680,1741012245399,-500.0,0.00023973,2]
[355209681,1741012245409,-500.0,0.00023973,2]
[355209682,1741012245419,-621.5961588,0.00023973,2]
[355209683,1741012245438,-500.0,0.00023973,2]
[355209684,1741012245451,-500.0,0.00023973,2]
[355209685,1741012245461,-429.57581091,0.00023973,2]
[355209686,1741012245471,-500.70076274,0.00023973,2]
[355209687,1741012245482,-206.49,0.00023973,3]
[355209688,1741012245492,-619.49,0.00023973,3]
[355209689,1741012245502,-500.0,0.00023982,2]
[355209690,1741012245512,-500.0,0.00023982,2]
[355209691,1741012245522,-365.26396845,0.00023982,2]
[355209692,1741012245532,-500.0,0.00023982,2]
[355209693,1741012245542,-1208.14172003,0.00023982,2]
[355209694,1741012245552,-545.58782396,0.00023982,2]
[355209695,1741012245562,-500.0,0.00023982,2]
[355209696,1741012245572,-1208.14172003,0.00023982,2]
[355209697,1741012245582,-1208.14172003,0.00023982,2]
[355209698,1741012245592,-644.46133401,0.00023982,2]
[355209699,1741012245606,-563.68038602,0.00023982,2]
[355209700,1741012245616,-1208.14172003,0.00023982,2]
[355209701,1741012245631,-1208.14172003,0.00023982,2]
[355209702,1741012245640,-950.480473,0.00023982,2]
[355209703,1741012245653,-257.66124703,0.00023982,2]
[355209704,1741012245662,-1208.14172003,0.00023982,2]
[355209705,1741012245672,-1208.14172003,0.00023982,2]
[355209706,1741012245682,-1208.14172003,0.00023982,2]
[355209707,1741012245692,-1208.14172003,0.00023982,2]
[355209708,1741012245702,-1208.14172003,0.00023982,2]
[355209709,1741012245712,-1208.14172003,0.00023982,2]
[355209710,1741012245722,-1208.14172003,0.00023982,2]
[355209711,1741012245732,-1208.14172003,0.00023982,2]
[355209712,1741012245742,-1208.14172003,0.00023982,2]
[355209713,1741012245751,-1208.14172003,0.00023982,2]
[355209714,1741012245761,-1208.14172003,0.00023982,2]
[355209715,1741012245771,-1208.14172003,0.00023982,2]
[355209716,1741012245780,-1208.14172003,0.00023982,2]
[355209717,1741012245790,-1208.14172003,0.00023982,2]
[355209718,1741012245799,-1208.14172003,0.00023982,2]
[355209719,1741012245809,-1208.14172003,0.00023982,2]
[355209720,1741012245819,-1208.14172003,0.00023982,2]
[355209721,1741012245828,-1208.14172003,0.00023982,2]
[355209722,1741012245838,-1208.14172003,0.00023982,2]
[355209723,1741012245847,-1208.14172003,0.00023982,2]
[355209724,1741012245857,-1208.14172003,0.00023982,2]
[355209725,1741012245867,-1208.14172003,0.00023982,2]
[355209726,1741012245880,-1208.14172003,0.00023982,2]
[355209727,1741012245891,-1208.14172003,0.00023982,2]
[355209728,1741012245900,-1208.14172003,0.00023982,2]
[355209729,1741012245910,-1208.14172003,0.00023982,2]
[355209730,1741012245919,-1208.14172003,0.00023982,2]
[355209731,1741012245929,-1208.14172003,0.00023982,2]
[355209732,1741012245939,-1208.14172003,0.00023982,2]
[355209733,1741012245948,-1208.14172003,0.00023982,2]
[355209734,1741012245958,-1208.14172003,0.00023982,2]
[355209735,1741012245967,-1208.14172003,0.00023982,2]
[355209736,1741012245978,-1208.14172003,0.00023982,2]
[355209737,1741012245988,-1208.14172003,0.00023982,2]
[355209738,1741012245997,-1208.14172003,0.00023982,2]
[355209739,1741012246007,-1208.14172003,0.00023982,2]
[355209740,1741012246017,-1208.14172003,0.00023982,2]
[355209741,1741012246027,-1208.14172003,0.00023982,2]
[355209742,1741012246037,-454.65106399,0.00023982,2]
[355209743,1741012246050,-753.49065604,0.00023982,2]
[355209744,1741012246064,-390.70475793,0.00023982,2]
[355209765,1741012246614,-2182.05623186,0.000239,3]
[355209767,1741012246627,-817.4369621,0.00023982,2]
[355209768,1741012246637,-1208.14172003,0.00023982,2]
[355209770,1741012246647,-1208.14172003,0.00023982,2]
[355209772,1741012246656,-103.08714381,0.00023982,2]
[355209773,1741012246668,-1105.05457622,0.00023982,2]
[355209775,1741012246678,-1208.14172003,0.00023982,2]
[355209776,1741012246687,-996.47112441,0.00023982,2]
[355209778,1741012246700,-211.67059562,0.00023982,2]
[355209779,1741012246710,-1208.14172003,0.00023982,2]
[355209781,1741012246720,-500.0,0.00024,120]
[355209782,1741012246729,-275.27774936,0.00024,120]
[355210346,1741013438007,-500.0,0.00022891,2]
[355210347,1741013438017,-6015.8517665,0.00022991,2]
[355210348,1741013438027,-379.97657909,0.00023556,2]
[355210349,1741013438036,-995.96647584,0.00023873,2]
[355210350,1741013438046,-300.0,0.00023899,2]
[355210351,1741013438056,-162.10649232,0.000239,3]
[355210352,1741013438066,-2109.32102417,0.000239,3]
[355210353,1741013438075,-13775.55898958,0.000239,5]
[355210354,1741013438085,-168.8914354,0.00023909,2]
[355210355,1741013438095,-153.96,0.00023963,2]
[355210356,1741013438104,-153.96,0.00023963,2]
[355210357,1741013438114,-153.96,0.00023963,2]
[355210358,1741013438123,-153.96,0.00023963,2]
[355210364,1741013438261,-153.96,0.00023963,2]
[355210365,1741013438279,-224.77088122,0.00023972,2]
[355210366,1741013438289,-500.0,0.00023972,2]
[355210367,1741013438299,-541.0206089,0.00023972,2]
[355210368,1741013438319,-500.0,0.00023972,2]
[355210369,1741013438331,-500.0,0.00023972,2]
[355210370,1741013438342,-500.0,0.00023972,2]
[355210371,1741013438352,-500.0,0.00023972,2]
[355210372,1741013438362,-500.0,0.00023972,2]
[355210373,1741013438372,-500.0,0.00023972,2]
[355210374,1741013438382,-500.0,0.00023972,2]
[355210375,1741013438393,-500.0,0.00023972,2]
[355210376,1741013438403,-500.0,0.00023972,2]
[355210377,1741013438414,-204.49449694,0.00023972,2]
[355210378,1741013438431,-295.50550306,0.00023972,2]
[355210379,1741013438441,-500.0,0.00023972,2]
[355210380,1741013438451,-500.0,0.00023972,2]
[355210381,1741013438462,-500.0,0.00023972,2]
[355210382,1741013438472,-471.42228994,0.00023972,2]
[355210647,1741013443042,-28.57771006,0.00023972,2]
[355210648,1741013443054,-500.0,0.00023972,2]
[355210650,1741013443065,-500.0,0.00023972,2]
[355210652,1741013443075,-500.0,0.00023972,2]
[355210653,1741013443085,-500.0,0.00023972,2]
[355210654,1741013443095,-471.42228994,0.00023972,2]
[355210655,1741013443111,-28.57771006,0.00023972,2]
[355210656,1741013443120,-500.0,0.00023972,2]
[355210657,1741013443130,-500.0,0.00023972,2]
[355210658,1741013443139,-500.0,0.00023972,2]
[355210660,1741013443149,-500.0,0.00023972,2]
[355210662,1741013443158,-500.0,0.00023972,2]
[355210664,1741013443168,-500.0,0.00023972,2]
[355210665,1741013443178,-500.0,0.00023972,2]
[355210667,1741013443198,-161.40572182,0.00023972,2]
[355210671,1741013443211,-338.59427818,0.00023972,2]
[355210673,1741013443221,-500.0,0.00023972,2]
[355210674,1741013443231,-500.0,0.00023972,2]
[355210677,1741013443241,-362.01656028,0.00023972,2]
[355210691,1741013443822,-137.98343972,0.00023972,2]
[355210692,1741013443832,-362.01329278,0.00023972,2]
[355210693,1741013443844,-137.98670722,0.00023972,2]
[355210694,1741013443856,-500.0,0.00023972,2]
[355210695,1741013443866,-500.0,0.00023972,2]
[355210696,1741013443875,-337.40920137,0.00023972,2]
[355210697,1741013443886,-500.0,0.00023972,2]
[355210698,1741013443896,-500.0,0.00023972,2]
[355210699,1741013443906,-500.0,0.00023972,2]
[355210700,1741013443916,-151.0,0.00023974,7]
[355210701,1741013443926,-151.0,0.00023974,7]
[355210702,1741013443940,-151.0,0.00023976,7]
[355210703,1741013443950,-151.0,0.00023976,7]
[355210705,1741013443960,-2425.0,0.00023976,2]
[355210706,1741013443970,-2883.90061443,0.00023981,2]
[355210707,1741013443980,-3370.40626195,0.00024,5]
[355210708,1741013443989,-224.72225064,0.00024,120]
[355210709,1741013443999,-500.0,0.00024,120]
[355210710,1741013444009,-500.0,0.00024,120]
[355210711,1741013444018,-500.0,0.00024,120]
[355210712,1741013444028,-500.0,0.00024,120]
[355210713,1741013444038,-500.0,0.00024,120]
[355210714,1741013444048,-500.0,0.00024,120]
[355210715,1741013444058,-500.0,0.00024,120]
[355210716,1741013444067,-500.0,0.00024,120]
[355210717,1741013444077,-500.0,0.00024,120]
[355210718,1741013444086,-500.0,0.00024,120]
[355210719,1741013444096,-500.0,0.00024,120]
[355210720,1741013444106,-500.0,0.00024,120]
[355210722,1741013444116,-500.0,0.00024,120]
[355210724,1741013444125,-500.0,0.00024,120]
[355210725,1741013444135,-500.0,0.00024,120]
[355210726,1741013444145,-500.0,0.00024,120]
[355210727,1741013444155,-500.0,0.00024,120]
[355210728,1741013444164,-500.0,0.00024,120]
[355210729,1741013444174,-500.0,0.00024,120]
[355210730,1741013444188,-500.0,0.00024,120]
[355210731,1741013444198,-546.63,0.00024,120]
[355210732,1741013444208,-500.0,0.00024,120]
[355210733,1741013444218,-500.0,0.00024,120]
[355210734,1741013444227,-1000.0,0.00024,24]
[355210735,1741013444237,-1445.65891415,0.00024,10]
[355210736,1741013444247,-389.99087,0.00024,120]
[355210737,1741013444256,-5000.0,0.00024,120]
[355210738,1741013444266,-151.0,0.00024,7]
[355210739,1741013444276,-151.0,0.00024,7]
[355210740,1741013444285,-255.81647,0.00024,7]
[355210741,1741013444295,-9529.4418542,0.000241,8]
[355210742,1741013444305,-4008.03685604,0.000242,5]
[355210743,1741013444317,-9997.19713236,0.000242,5]
[355210744,1741013444329,-4010.26382444,0.000242,5]
[355210745,1741013444340,-9420.42712814,0.000242,5]
[355210746,1741013444352,-270.37098571,0.000242,5]
[355210747,1741013444379,-10754.78694747,0.000242,5]
[355210748,1741013444391,-2309.78964869,0.000242,5]
[355210749,1741013444401,-826.64904866,0.00024213,2]
[355210750,1741013444411,-30000.0,0.000243,5]
[355210751,1741013444420,-150.0,0.00024313,2]
[355210752,1741013444429,-539.0,0.00024313,2]
[355210753,1741013444442,-1955.0,0.00024313,2]
[355210754,1741013444451,-2278.0,0.00024313,2]
[355210755,1741013444461,-826.64904866,0.00024385,2]
[355210756,1741013444470,-150.0,0.000244,2]
[355210757,1741013444480,-151.0,0.000244,7]
[355210758,1741013444490,-1001.785556,0.000244,2]
[355210759,1741013444499,-826.64904866,0.00024557,2]
[355210760,1741013444509,-200.0,0.0002464,14]
[355210761,1741013444518,-153.0,0.00024658,2]
[355210762,1741013444528,-800.0,0.000247,4]
[355210763,1741013444538,-3255.09032338,0.000247,2]
[355210774,1741013446109,-412.98,0.0002429,3]
[355210775,1741013446120,-5104.55944332,0.000247,2]
[355210776,1741013446173,-1505.387035,0.000247,2]
[355210777,1741013446188,-2388.52758607,0.000247,2]
[355210778,1741013446200,-17096.17840485,0.000247,2]
[355210779,1741013446211,-151.0,0.000247,7]
[355210780,1741013446220,-826.64904866,0.00024728,2]
[355210781,1741013446230,-22776.99704218,0.0002475,2]
[355210782,1741013446240,-151.0,0.000248,7]
[355210785,1741013446249,-3908.66566896,0.000249,2]
[355210786,1741013446259,-826.64904866,0.000249,2]
[355210788,1741013446270,-3000.0,0.000249,2]
[355210790,1741013446280,-500.0,0.00024973,2]
[355210792,1741013446290,-500.3509782,0.00024973,2]
[355210793,1741013446299,-500.0,0.00024973,2]
[355210794,1741013446309,-308.89450712,0.00024973,2]
[355210795,1741013446318,-500.0,0.00024973,2]
[355210796,1741013446328,-500.0,0.00024973,2]
[355210797,1741013446338,-500.0,0.00024973,2]
[355210798,1741013446348,-500.0,0.00024973,2]
[355210799,1741013446358,-500.0,0.00024973,2]
[355210800,1741013446368,-258.00597919,0.00024973,2]
[355210801,1741013446380,-1013.66,0.0002499,2]
[355210802,1741013446392,-43169.70660564,0.00025,2]
[355210803,1741013446404,-1151.0,0.00025,2]
[355210804,1741013446415,-1464.48,0.00025,2]
[355210813,1741013741771,41991.0,0.00021,2]
[355210814,1741013808938,500.0,0.0002,7]
[355210815,1741013826458,500.0,0.00021,3]
[355210816,1741013840479,500.0,0.00021,2]
[355210846,1741014383870,1054.16,0.00021,2]
[355210847,1741014393342,1054.16,0.00021,2]
[355210848,1741014404244,1054.16,0.00021,2]
[355211368,1741014638379,-913.68013903,0.00022,2]
[355211371,1741014638392,-140.47986097,0.00022,2]
[355211373,1741014638402,-1054.16,0.00022,2]
[355211375,1741014638411,-160.778331,0.00022629,2]
[355211377,1741014638421,-206.4210659,0.00022738,2]
[355211379,1741014638431,-327.778663,0.00023029,2]
[355211381,1741014638441,-1886.819235,0.00023108,2]
[355211383,1741014638451,-1021.98941641,0.00023863,2]
[355211386,1741014638460,-300.0,0.00023953,2]
[355211388,1741014638470,-151.83,0.00023954,3]
[355211390,1741014638479,-455.52,0.00023954,3]
[355211392,1741014638489,-529.8896108,0.00023962,2]
[355211394,1741014638499,-186.21462225,0.00023962,2]
[355211396,1741014638508,-500.0,0.00023962,2]
[355211398,1741014638518,-552.50697586,0.00023962,2]
[355211400,1741014638527,-500.0,0.00023962,2]
[355211402,1741014638538,-500.0,0.00023962,2]
[355211404,1741014638547,-480.73548934,0.00023962,2]
[355211405,1741014638557,-49.57599487,0.00023962,2]
[355211407,1741014638569,-350.19442314,0.00023962,2]
[355211411,1741014638585,-100.22958199,0.00023962,2]
[355211414,1741014638596,-500.0,0.00023962,2]
[355211416,1741014638605,-500.0,0.00023962,2]
[355211418,1741014638615,-500.0,0.00023962,2]
[355211419,1741014638627,-500.0,0.00023962,2]